Cogmind - Beta 15 @@@ ROGUE MODE // 2025.07.04 @ 22:46:26 Player: Asimov Result: Self-destructed Performance ------------- Evolutions (2) 1000 Regions Visited (4) 800 Robots Destroyed (9) 45 Value Destroyed (288) 288 Prototype IDs (3) 60 Alien Tech Used (0) 0 Bonus (214) 214 TOTAL SCORE: 2407 Bonus ------- Pacifist 200 Follower Combat Kills 14 Cogmind --------- Core Integrity 477/550 Matter 213/300 Energy 100/100 System Corruption 0% Temperature Critical (711) Movement Core (550) Ox10 Location -8/Materials Parts ------- > --- POWER (2) -------- (None) > --- PROPULSION (3) --- Light Treads > --- UTILITY (3) ------ Large Storage Unit > --- WEAPON (3) ------- Ion Cannon Plasma Cannon > --- INVENTORY (15) --- Ion Engine Heat Sink Advanced Targeting Computer Gatling Laser Heavy Particle Cannon Light Assault Rifle Peak State ------------ > --- POWER ------------ Ion Engine Improved Ion Engine > --- PROPULSION ------- Light Treads Light Treads Light Treads > --- UTILITY ---------- Heat Sink Large Storage Unit Energy Filter > --- WEAPON ----------- Heavy EM Shotgun Ion Cannon Plasma Cannon > --- INVENTORY -------- Ion Engine Heat Sink Advanced Targeting Computer Gatling Laser Heavy Particle Cannon Light Assault Rifle Grenade Launcher [Rating: 24] Favorites ----------- Power Ion Engine Engine Ion Engine Propulsion Compact Wheel Treads Light Treads Wheel Compact Wheel Utility Large Storage Unit Device Heat Sink Storage Large Storage Unit Weapon Grenade Launcher Energy Gun Heavy EM Shotgun Energy Cannon Plasma Cannon Ballistic Gun Assault Rifle Launcher Grenade Launcher Build | -11 -10 -9 -9 -8 ------- Run | Yrd Mat Mat Min Mat Slots Evolved 4 | . . 2 . 2 Power 1 | . . 1 . . Propulsion 1 | . . . . 1 Utility 1 | . . 1 . . Weapon 1 | . . . . 1 Parts Attached 21 | 7 4 . 2 8 Power 4 | 1 1 . . 2 Engine 4 | 1 1 . . 2 Core . | . . . . . Reactor . | . . . . . Propulsion 6 | 2 . . . 4 Treads 3 | . . . . 3 Leg . | . . . . . Wheel 3 | 2 . . . 1 Hover . | . . . . . Flight . | . . . . . Utility 4 | 1 2 . 1 . Device 2 | . 1 . 1 . Storage 2 | 1 1 . . . Processor . | . . . . . Hackware . | . . . . . Protection . | . . . . . Artifact . | . . . . . Weapon 7 | 3 1 . 1 2 Energy Gun 2 | 1 . . . 1 Energy Cannon 2 | . . . 1 1 Ballistic Gun 2 | 2 . . . . Ballistic Cannon . | . . . . . Launcher 1 | . 1 . . . Special Weapon . | . . . . . Impact Weapon . | . . . . . Slashing Weapon . | . . . . . Piercing Weapon . | . . . . . Special Melee Weapon . | . . . . . Unidentified Prototypes 1 | . . . . 1 Parts Lost 10 | . 2 . 1 7 Power 3 | . 1 . . 2 Propulsion 3 | . . . 1 2 Utility 2 | . . . . 2 Weapon 2 | . 1 . . 1 Highest Loss Streak 7 | . 2 . 1 7 To Critical Strikes . | . . . . . Average Backups 3 | 1 2 2 2 4 Power . | . . . . . Propulsion . | . . . . . Utility . | . . . . 1 Weapon 2 | . 1 2 2 2 Tool/Special . | . . . . . Unused Backups 5 | . . . 1 4 Power . | . . . . . Propulsion . | . . . . . Utility 2 | . . . . 2 Weapon 3 | . . . 1 2 Tool/Special . | . . . . . Average Slot Usage (%) 84 | . 83 77 82 88 Engine 12 | . 12 11 11 13 Treads 6 | . . . . 15 Wheel 15 | . 28 22 19 5 Device 14 | . 1 11 18 18 Storage 10 | . 14 11 11 9 Energy Gun 1 | . 5 . . 1 Energy Cannon 7 | . . . 7 12 Ballistic Gun 7 | . 14 11 3 5 Launcher 9 | . 8 11 11 7 Peak Build Rating 24 | 6 7 7 14 24 Average Rating 12 | 3 5 7 11 17 On Entrance 6 | . 6 7 7 13 Naked Turns . | . . . . . Heaviest Build 53 | 14 31 31 39 53 Greatest Support 60 | 26 26 26 26 60 Greatest Overweight (x) 2 | 1 1 1 2 2 Average Overweight (x) . | . . 1 1 . Largest Inventory Capacity 15 | 8 15 15 15 15 Average Capacity 14 | 6 14 15 15 15 Most Carried 8 | 2 3 2 3 8 Average Carried 3 | 1 2 2 2 5 Final Capacity 15 | 8 15 15 15 15 Final Carried 6 | 2 2 2 3 6 Class Distribution -------------------- 59% | Mutant 17% | Scavenger-Bomber 16% | Bomber 7% | Scavenger-Gunner Dominant Class ---------------- Mutant | -10/Materials Mutant | -9/Materials Mutant | -9/Mines Scavenger-Bomber | -8/Materials Resources | -11 -10 -9 -9 -8 ----------- Run | Yrd Mat Mat Min Mat Matter Collected 351 | 210 . . 46 95 Remotely . | . . . . . Salvage Created 316 | . . . 22 294 Parts 17 | . . . 3 14 Haulers Intercepted 1 | . . . . 1 Recyclers Shooed . | . . . . . Parts Field Recycled . | . . . . . Retrieved Matter . | . . . . . Parts Self-Destructed . | . . . . . Prevented . | . . . . . Kills | -11 -10 -9 -9 -8 ------- Run | Yrd Mat Mat Min Mat Combat Hostiles Destroyed 8 | . . . 3 5 Guns 1 | . . . . 1 Cannons 3 | . . . 1 2 AOE 4 | . . . 2 2 Classes Destroyed 4 | . . . 1 3 Hauler 1 | . . . . 1 Swarmer 3 | . . . 3 . Grunt 4 | . . . . 4 Sentry 1 | . . . . 1 Best Kill Streak 3 | . . . 3 3 Combat Bots Only 3 | . . . 3 3 Max Kills in Single Turn 2 | . . . 1 2 Gunslinging . | . . . . . Exploded 1 | . . . 1 1 Melee . | . . . . . Uniques/NPCs Destroyed . | . . . . . Combat | -11 -10 -9 -9 -8 -------- Run | Yrd Mat Mat Min Mat Hostile Shots Fired 71 | . 3 . 8 60 Missed 13 | . 1 . 3 9 Hits 58 | . 2 . 5 51 Projectile 58 | . 2 . 5 51 Critical Strikes 1 | . . . . 1 Damage Taken 1090 | . 131 . 147 812 Core 163 | . 24 . 66 73 Absorbed by Shields . | . . . . . Core Remaining (%) 91 | 100 90 . 83 . Volleys Fired 14 | . . . 4 10 Largest 3 | . . . 2 3 Hottest 190 | . . . 110 190 Shots Fired 36 | . . . 8 28 Gun 8 | . . . . 8 Cannon 23 | . . . 4 19 Launcher 5 | . . . 4 1 Special . | . . . . . Kinetic 1 | . . . . 1 Thermal 23 | . . . 4 19 Explosive 5 | . . . 4 1 Electromagnetic 7 | . . . . 7 Robot Hit Streak 13 | . . . 2 13 Robot Miss Streak 4 | . . . 4 1 Penetration Max . | . . . . . Secondary Targets . | . . . . . Shots Hit Robots 24 | . . . 3 21 Core Hits 16 | . . . 4 12 Critical Kills . | . . . . . Critical Parts Destroyed . | . . . . . Critical Strikes . | . . . . . Melee Attacks . | . . . . . Impact . | . . . . . Slashing . | . . . . . Piercing . | . . . . . Sneak Attacks . | . . . . . Combat Hostiles . | . . . . . Follow-up Attacks . | . . . . . Damage Inflicted 859 | . . . 185 674 Guns 156 | . . . . 156 Cannons 387 | . . . 49 338 Explosions 316 | . . . 136 180 Melee . | . . . . . Ramming . | . . . . . Kinetic 11 | . . . . 11 Thermal 548 | . . . 79 469 Explosive 155 | . . . 106 49 Electromagnetic 145 | . . . . 145 Impact . | . . . . . Slashing . | . . . . . Piercing . | . . . . . Highest Corruption 1 | . 1 . . . Average Corruption 1 | . 1 . . . Corruption Purged . | . . . . . Corruption Blocked . | . . . . . Effects 1 | . 1 . . . Message Errors 1 | . 1 . . . Overload Shots . | . . . . . Overflow Damage 21 | . . . 21 . Projectiles . | . . . . . Explosions 21 | . . . 21 . Melee . | . . . . . Knockbacks . | . . . . . Impact . | . . . . . Kinetic . | . . . . . Secondary . | . . . . . Self-Inflicted Damage 103 | . . . 103 . Shots 3 | . . . 3 . Rammed . | . . . . . Targets Rammed . | . . . . . Kicked . | . . . . . Crushed . | . . . . . Highest Temperature 693 | . . . 120 693 Average Temperature 217 | . . . 61 267 Received Heat Transfer 477 | . 18 . . 459 Effects 8 | . . . . 8 Shutdowns 3 | . . . . 3 Interference 3 | . . . . 3 Short Circuit 1 | . . . . 1 Damage (minor) 1 | . . . . 1 Siege Activations . | . . . . . Martial Activations . | . . . . . Shielding Activations . | . . . . . Robots Disrupted . | . . . . . Combat Hostiles . | . . . . . Robots Corrupted . | . . . . . Combat Hostiles . | . . . . . Parts Fried . | . . . . . Impact Corruptions . | . . . . . Robots Melted . | . . . . . Combat Hostiles . | . . . . . Parts Melted . | . . . . . Heat Transferred 896 | . . . 150 746 Parts Sabotaged . | . . . . . Parts Stolen . | . . . . . Parts Stripped . | . . . . . Power Chain Reactions 1 | . . . . 1 Alert | -11 -10 -9 -9 -8 ------- Run | Yrd Mat Mat Min Mat Maximum Alert Level . | . . . . . Low Security (%) 100 | 100 100 100 100 100 Level 1 . | . . . . . Level 2 . | . . . . . Level 3 . | . . . . . Level 4 . | . . . . . Level 5 . | . . . . . High Security . | . . . . . Max Security . | . . . . . Peak Influence 158 | . . 35 158 86 Initial 49 | . . . 9 49 Average 16 | . . 8 31 18 Influence Increases 377 | . . 45 168 164 Destroy 0b10 Robot/C 200 | . . . 100 100 Destroy 0b10 Robot/NC 5 | . . . . 5 Destroy Leader 52 | . . . 20 32 Allied During Kill 7 | . . . 7 . Disable Machine 30 | . . . 15 15 Destroy Structure 38 | . . . 26 12 Lose Combat Pursuer 45 | . . 45 . . Influence Decreases 344 | . . 20 65 259 Entered New Map 95 | . . . 16 79 Time Decay 169 | . . 20 39 110 Lost Part 80 | . . . 10 70 Squads Dispatched 2 | . . . 1 1 Investigation 2 | . . . 1 1 Extermination . | . . . . . Reinforcement . | . . . . . Assault . | . . . . . Garrison . | . . . . . Intercept . | . . . . . Searches Triggered . | . . . . . Construction Impeded . | . . . . . Haulers Reinforced . | . . . . . Active Scanning Responses . | . . . . . Cargo Convoy Interrupts . | . . . . . Stealth | -11 -10 -9 -9 -8 --------- Run | Yrd Mat Mat Min Mat Distress Signals 2 | . . 1 . 1 Communications Jammed . | . . . . . Distress Signals . | . . . . . Times Spotted 14 | . 2 1 3 8 Peak Tracking Total 8 | . . 5 3 8 Tactical Retreats 1 | . . 1 . . Traps | -11 -10 -9 -9 -8 ------- Run | Yrd Mat Mat Min Mat Traps Triggered 4 | . 3 . . 1 Indirectly . | . . . . . Trap Hack Attempts . | . . . . . Triggered . | . . . . . Disarmed . | . . . . . Reprogrammed . | . . . . . Reused . | . . . . . Traps Extracted . | . . . . . Installed . | . . . . . Triggered . | . . . . . Machines | -11 -10 -9 -9 -8 ---------- Run | Yrd Mat Mat Min Mat Machines Disabled 2 | . . . 1 1 Max in Single Turn 1 | . . . 1 1 Machines Repaired . | . . . . . Machines Dismantled . | . . . . . Machines Sabotaged . | . . . . . Overloaded Fab Kills . | . . . . . Hacking | -11 -10 -9 -9 -8 --------- Run | Yrd Mat Mat Min Mat Machines Accessed 5 | . . 2 1 2 Terminals 2 | . . 2 . . Fabricators . | . . . . . Repair Stations . | . . . . . Recycling Units 1 | . . . . 1 Scanalyzers 1 | . . . . 1 Garrison Access . | . . . . . Total Hacks 6 | . . 2 1 3 Successful 4 | . . 1 1 2 Failed 2 | . . 1 . 1 Catastrophic . | . . . . . Database Lockouts . | . . . . . Manual . | . . . . . Terminals 2 | . . 2 . . Fabricators . | . . . . . Repair Stations . | . . . . . Recycling Units 1 | . . . . 1 Scanalyzers 2 | . . . . 2 Garrison Access . | . . . . . Terminal Hacks 2 | . . 1 1 . Prototype ID Bank 1 | . . 1 . . Open Door 1 | . . . 1 . Fabricator Hacks . | . . . . . Repair Station Hacks . | . . . . . Recycling Unit Hacks 1 | . . . . 1 Recycle Component 1 | . . . . 1 Scanalyzer 1 | . . . . 1 Insert Component 1 | . . . . 1 Garrison Access Hacks . | . . . . . Unauthorized Hacks . | . . . . . Terminals . | . . . . . Fabricators . | . . . . . Repair Stations . | . . . . . Recycling Units . | . . . . . Scanalyzers . | . . . . . Garrison Access . | . . . . . Data Cores Recovered . | . . . . . Used . | . . . . . Hacking Detections 2 | . . 1 . 1 Full Trace Events . | . . . . . Feedback Events . | . . . . . Feedback Blocked . | . . . . . Robot Schematics Acquired . | . . . . . Robots Built . | . . . . . Authchips . | . . . . . Time . | . . . . . Total Robot Build Rating . | . . . . . Part Schematics Acquired . | . . . . . Parts Built . | . . . . . Authchips . | . . . . . Time . | . . . . . Total Part Build Rating . | . . . . . Parts Repaired . | . . . . . Time . | . . . . . Parts Recycled 1 | . . . . 1 Recycled Matter . | . . . . . Retrieved Matter . | . . . . . Retrieved Components . | . . . . . Parts Scanalyzed 1 | . . . . 1 Part Schematics Acquired . | . . . . . Parts Damaged 1 | . . . . 1 Bothacking | -11 -10 -9 -9 -8 ------------ Run | Yrd Mat Mat Min Mat Used RIF Installer . | . . . . . Robots Hacked . | . . . . . Non-combat . | . . . . . Combat . | . . . . . Robot Hacks Applied . | . . . . . Relay Couplers Released . | . . . . . Fabnet Peak Effective % . | . . . . . Robots Rewired . | . . . . . Allies Hacked . | . . . . . Hacks Repelled . | . . . . . Allies | -11 -10 -9 -9 -8 -------- Run | Yrd Mat Mat Min Mat Total Allies 1 | . . . 1 . Largest Group 1 | . . . 1 1 Highest-Rated Group 31 | . . . 31 31 Highest-Rated Ally 31 | . . . 31 31 Total Orders . | . . . . . Ally Attacks 3 | . . . 3 . Total Damage 62 | . . . 62 . Kills 2 | . . . 2 . Allies Corrupted . | . . . . . Allies Melted . | . . . . . Intel | -11 -10 -9 -9 -8 ------- Run | Yrd Mat Mat Min Mat Active Infowar (turns) . | . . . . . Robot Analysis Total . | . . . . . Derelict Logs Recovered 1 | . . . 1 . Drone Launches . | . . . . . Drone Recoveries . | . . . . . Exploration | -11 -10 -9 -9 -8 ------------- Run | Yrd Mat Mat Min Mat Turns Passed 997 | 54 134 136 265 408 Spaces Moved 754 | 48 120 130 224 232 Core 16 | 16 . . . . Treads 107 | . . . . 107 Legs . | . . . . . Wheels 631 | 32 120 130 224 125 Hover . | . . . . . Flight . | . . . . . Fastest Speed 50 | 50 90 105 105 115 Average Speed 117 | 86 103 105 109 145 Slowest Speed 320 | 100 105 105 130 320 Overloaded Moves . | . . . . . Propulsion Burnouts . | . . . . . Robots Hopped . | . . . . . Potential Cave-ins . | . . . . . Cave-ins Triggered . | . . . . . Exploration Rate (%) 20 | 3 22 14 43 20 Regions Visited 4 Branch Regions 1 Pre-discovered Areas . | . . . . . Known Exits Taken . | . . . . . Unknown Exits Taken 4 | 1 1 1 1 . Scrap Searched . | . . . . . Spaces Dug . | . . . . . Terrain Destroyed 44 | . . . 32 12 Melee . | . . . . . Projectile 4 | . . . 1 3 AOE 40 | . . . 31 9 Terrain Rammed . | . . . . . Walls Destroyed . | . . . . . Machines Disabled . | . . . . . Actions | -11 -10 -9 -9 -8 --------- Run | Yrd Mat Mat Min Mat Total 827 | 56 129 129 235 278 Wait 22 | . 2 . 3 17 Move 750 | 47 119 129 223 232 Hop . | . . . . . Pick Up 11 | 2 1 . 2 6 Fast Attach 14 | 6 3 . 1 4 Attach 3 | . 2 . . 1 Detach 2 | . 1 . . 1 Swap 6 | 1 . . 1 4 Drop 5 | . 1 . 1 3 Fire 14 | . . . 4 10 Melee . | . . . . . Ram . | . . . . . Kick . | . . . . . Crush . | . . . . . Escape Stasis . | . . . . . Rewire . | . . . . . Trap . | . . . . . Miscellaneous . | . . . . . Route ------- -11/Scrapyard -10/Materials -9/Materials -9/Mines -8/Materials History --------- Turn | Location | Event 40 | -11/Scrapyard | Discovered new exit (range 16) 55 | -11/Scrapyard | Entered Materials 184 | -10/Materials | Discovered new exit (range 3) 189 | -10/Materials | Entered another Materials area 189 | -9/Materials | Evolved 2 slots: Power x1, Utility x1 263 | -9/Materials | Discovered new exit (range 8) 312 | -9/Materials | Build established: Mutant 325 | -9/Materials | Entered Mines 372 | -9/Mines | Learned 2 Materials zone layouts 399 | -9/Mines | Met a Derelict shopkeep closing up shop 435 | -9/Mines | Received a Mining Laser from a helpful Derelict 565 | -9/Mines | Discovered new exit (range 12) 566 | -9/Mines | Received a Rocket Launcher from a helpful Derelict 590 | -9/Mines | Entered Materials 590 | -8/Materials | Accompanied by 1 ally 590 | -8/Materials | Evolved 2 slots: Propulsion x1, Weapon x1 998 | -8/Materials | Self-destructed Last Messages --------------- 00990_ Critical hit (Burn: +37). 00991_ Power failure, Imp. Ion Engine shutdown. 00991_ K-01 Serf collects debris. 00992_ Overheating: System interference. 00992_ Energy Filter temporarily disabled. 00992_ Hvy. EM Shotgun temporarily disabled. 00992_ Lgt. Treads destroyed. 00992_ U-05 Engineer builds a Wall. 00992_ R-06 Scavenger inserts Broken Com. Wheel into recycling unit. 00992_ Recycling Unit disabled. 00992_ Flail tumbles out of recycling unit. 00994_ Energy Filter destroyed. 00995_ Heat Sink destroyed. 00996_ Overheating: System interference. 00996_ Ion Cannon temporarily disabled. 00996_ Imp. Ion Engine destroyed. 00997_ Overheating: Hvy. EM Shotgun damaged (-10). 00997_ Hvy. EM Shotgun destroyed. Map ----- +----------------------------------------------------+ | ?????????????????????????????????????????????????? | | ?????????????????????????????????????????????????? | | ?????????????????????????????????????????????????? | | ?????????????????????????????????????????????????? | | ?????????????????????????????????????????????????? | | ?????????????????????????????????????????????????? | | ?????????????????????????????????????????????????? | | ?????????????????????????????????????????????????? | | ??????????????? ????????????????????????????????? | | ????????????# |!" ???????????????????????????????? | | ????????????# =%" ???????????????????????????????? | | ????????????# *" ???????????????????????????????? | | ????????????# ???????????????????????????????? | | ????????????? [???????????????????????????????? | | ?????????????? ??????????????????????????????? | | ??????????????# ??????????????????????????????? | | ??????????????# =%#?????????????????????????????? | | ??????????????# =%[#?????????????????????????????? | | ??????????????# =%###??###??????????????????????? | | ??????????????# *########??????????????????????? | | ??????????????# r!u #??????????????????????? | | ????????????????## #??????????????????????? | | ????????????????## """% #??????????????????????? | | ????????????????## "Y / ##?????????????????????? | | ????????????????## g #######????????????????? | | ????????????????## g @#[ #????????????????? | | ??????############ g # #????????????????? | | ??????# ]! # /![ # #########????????? | | ??????# ]! """ # /![ k " # # ????????? | | ??????# [! """ # /[[ # T # """# ????????? | | ####### """ ######### # " # """# ????????? | | #! #???????#k/ # """# ????????? | | """ =# ! #???????# ####### """# ????????? | | """ =# #???????# #?????# + ????????? | | """ # #?????### ###???# """# ????????? | | #+#+############# #???# """# ????????? | | """ # ### #???# """##????????? | | """ + ![/ #???# """##????????? | | """ # ### #???# ##????????? | | ########### ### #???# ##????????? | | """ !# # #?###+####??# ##????????? | | """ # # #?# #??#########????????? | | """ [# # #?# #???????????????????? | | # + #?# """#???????????????????? | | ####### # #?# """#???????????????????? | | ??????# # #?# """#???????????????????? | | ??????# # #?# #???????????????????? | | ??????#! # #?########???????????????????? | | ??????#######+### ###########??????????????????? | | ????????????# #?# # #??????????????????? | +----------------------------------------------------+ Best States ------------- Heat Dissipation 41 Energy Generation 17 Energy Capacity 415 Matter Stores 240 Matter Capacity 300 Sight Range 16 Terrain Scan Density 10 Evasion (%) 42 Recoil Reduction 3 Energy Filtering 30 Item Schematics ----------------- None Robot Schematics ------------------ None Fabricated ------------ Nothing Repaired ---------- Nothing Alien Tech Used ----------------- None Achievements -------------- None Challenges ------------ None Game ------ Seed EnergyAnalysisLance Manual? 0 Play Time 00:13:56 Cumulative 12.2 hours Start 2025.07.04 @ 22:34:04 End 2025.07.04 @ 22:46:26 Sessions 1 Manual Loads 0 Difficulty Rogue Special Mode None Game No. 37 Rogue 37 Adventurer 0 Explorer 0 Win Type - Total 0 Types 0/0/0/0/0/0/0/0/0/0 Lore% 9 Gallery% 16 Achievement% 13 Wizard Run 0 Options --------- Layout 1 ASCII 0 Keyboard 0 Movement Arrows Keybinds 0 Fullscreen 1 Font 24/Smallcaps Map View 50x35 Zoom Use 0% Tactical HUD 1 Map Filters NONE Filters NONE Steam 1 RUN: de010438-cc4b-4daf-8d16-52ab03efe7fd